[Event "Rapid della Domenica"]
[Site "Chess.com"]
[Date "2020.06.07"]
[Round "1"]
[White "mr6701"]
[Black "ferrariand"]
[Result "1-0"]
[WhiteElo "1771"]
[BlackElo "1520"]
[TimeControl "720+3"]
[EndTime "6:05:55 PDT"]
[Termination "mr6701 ha vinto per scaccomatto"]

1. e4 {[%clk 0:12:01.9]} 1... e5 {[%clk 0:12:00.6]} 2. d4 {[%clk 0:12:04.3]}
2... exd4 {[%clk 0:11:57]} 3. c3 {[%clk 0:12:02.1]} 3... dxc3 {[%clk 0:11:56.8]}
4. Nxc3 {[%clk 0:12:04]} 4... Nc6 {[%clk 0:11:40.5]} 5. Nf3 {[%clk 0:12:05.7]}
5... Bb4 {[%clk 0:11:34.4]} 6. Bc4 {[%clk 0:12:06]} 6... Nf6 {[%clk 0:11:29]} 7.
O-O {[%clk 0:12:04.9]} 7... O-O {[%clk 0:11:29.9]} 8. Bg5 {[%clk 0:12:06.2]}
8... h6 {[%clk 0:11:22.1]} 9. Bh4 {[%clk 0:12:07]} 9... d6 {[%clk 0:11:22.3]}
10. Nd5 {[%clk 0:12:05.4]} 10... g5 {[%clk 0:11:17.1]} 11. Nxg5 {[%clk
0:12:07.1]} 11... hxg5 {[%clk 0:11:13.8]} 12. Bxg5 {[%clk 0:12:09]} 12... Be6
{[%clk 0:09:39.3]} 13. Nxf6+ {[%clk 0:11:51.2]} 13... Qxf6 {[%clk 0:09:19.9]}
14. Bxf6 {[%clk 0:11:50.9]} 14... Bxc4 {[%clk 0:09:20.7]} 15. Qg4+ {[%clk
0:11:52]} 15... Kh7 {[%clk 0:09:12.5]} 16. Qg7# {[%clk 0:10:57.3]} 1-0

[Event "Rapid della Domenica"]
[Site "Chess.com"]
[Date "2020.06.07"]
[Round "1"]
[White "crippo"]
[Black "Carbon"]
[Result "1-0"]
[WhiteElo "1567"]
[BlackElo "1750"]
[TimeControl "720+3"]
[EndTime "6:18:48 PDT"]
[Termination "crippo ha vinto per abbandono"]

1. e4 {[%clk 0:10:38]} 1... c5 {[%clk 0:11:40.5]} 2. Nc3 {[%clk 0:10:36.1]} 2...
g6 {[%clk 0:11:40.3]} 3. Nf3 {[%clk 0:10:34]} 3... Bg7 {[%clk 0:11:40.5]} 4. Bc4
{[%clk 0:10:34.8]} 4... Nc6 {[%clk 0:11:30]} 5. a4 {[%clk 0:10:30.9]} 5... d6
{[%clk 0:11:23.2]} 6. d3 {[%clk 0:10:29.9]} 6... Nf6 {[%clk 0:11:18.1]} 7. h3
{[%clk 0:10:29.1]} 7... O-O {[%clk 0:11:18.1]} 8. Bg5 {[%clk 0:10:28.7]} 8... a6
{[%clk 0:11:09.4]} 9. Qd2 {[%clk 0:10:27.8]} 9... Rb8 {[%clk 0:10:58.4]} 10. O-O
{[%clk 0:10:21.3]} 10... Bd7 {[%clk 0:10:48.7]} 11. Bh6 {[%clk 0:10:16.4]} 11...
Na5 {[%clk 0:10:21.6]} 12. Ba2 {[%clk 0:10:13.9]} 12... b5 {[%clk 0:10:17.4]}
13. axb5 {[%clk 0:10:15.1]} 13... axb5 {[%clk 0:10:19.5]} 14. Bxg7 {[%clk
0:10:11.7]} 14... Kxg7 {[%clk 0:10:21.1]} 15. Nd5 {[%clk 0:10:07.8]} 15... Ne8
{[%clk 0:08:54.1]} 16. Ng5 {[%clk 0:09:57]} 16... Nc6 {[%clk 0:08:41.7]} 17. f4
{[%clk 0:09:53]} 17... e6 {[%clk 0:08:26.3]} 18. Ne3 {[%clk 0:09:43.2]} 18... h6
{[%clk 0:08:11.6]} 19. Nf3 {[%clk 0:09:44]} 19... f5 {[%clk 0:07:52]} 20. Qc3+
{[%clk 0:09:26.7]} 20... Kh7 {[%clk 0:07:31.1]} 21. exf5 {[%clk 0:09:09.9]}
21... exf5 {[%clk 0:07:24.1]} 22. Rae1 {[%clk 0:08:56.6]} 22... Nf6 {[%clk
0:07:09.4]} 23. Nd5 {[%clk 0:08:54.3]} 23... Nxd5 {[%clk 0:07:02.2]} 24. Bxd5
{[%clk 0:08:54.9]} 24... b4 {[%clk 0:06:33.1]} 25. Qd2 {[%clk 0:08:49.1]} 25...
Qf6 {[%clk 0:06:31.2]} 26. b3 {[%clk 0:08:47.9]} 26... Rbe8 {[%clk 0:06:31]} 27.
Rxe8 {[%clk 0:08:29.8]} 27... Rxe8 {[%clk 0:06:31.7]} 28. Re1 {[%clk 0:08:30.6]}
28... Nd4 {[%clk 0:06:23.3]} 29. Nxd4 {[%clk 0:08:10.4]} 29... Qxd4+ {[%clk
0:06:23.5]} 30. Kh2 {[%clk 0:07:44.7]} 30... Qxd5 {[%clk 0:06:24.8]} 31. Rxe8
{[%clk 0:07:41.3]} 31... Bxe8 {[%clk 0:06:27.7]} 32. Qe3 {[%clk 0:07:42.4]}
32... Qf7 {[%clk 0:05:54.7]} 33. d4 {[%clk 0:07:40.6]} 33... cxd4 {[%clk
0:05:21.7]} 34. Qxd4 {[%clk 0:07:41.3]} 34... Qe6 {[%clk 0:04:51.8]} 35. Qxb4
{[%clk 0:07:40]} 35... Bf7 {[%clk 0:04:53.4]} 36. Qb7 {[%clk 0:07:30.1]} 36...
Kg7 {[%clk 0:04:54]} 37. Qc7 {[%clk 0:07:30.1]} 37... d5 {[%clk 0:04:47.8]} 38.
b4 {[%clk 0:07:29.3]} 38... d4 {[%clk 0:04:48.4]} 39. b5 {[%clk 0:07:28.2]}
39... Qc4 {[%clk 0:04:43.1]} 40. Qe5+ {[%clk 0:07:18.2]} 40... Kh7 {[%clk
0:04:45.5]} 41. b6 {[%clk 0:07:14.3]} 41... Qd5 {[%clk 0:04:41.9]} 42. Qe7
{[%clk 0:06:29.6]} 42... Qe6 {[%clk 0:04:01.2]} 43. Qxe6 {[%clk 0:06:24.7]}
43... Bxe6 {[%clk 0:03:59.8]} 44. b7 {[%clk 0:06:26.7]} 1-0

[Event "Rapid della Domenica"]
[Site "Chess.com"]
[Date "2020.06.07"]
[Round "1"]
[White "sirmale49"]
[Black "pedrak"]
[Result "0-1"]
[WhiteElo "1369"]
[BlackElo "1710"]
[TimeControl "720+3"]
[EndTime "6:26:27 PDT"]
[Termination "pedrak ha vinto per tempo"]

1. f4 {[%clk 0:11:56]} 1... b6 {[%clk 0:11:54.4]} 2. Nf3 {[%clk 0:10:24.2]} 2...
Bb7 {[%clk 0:11:53.4]} 3. e3 {[%clk 0:10:23.2]} 3... e6 {[%clk 0:11:53.8]} 4. g3
{[%clk 0:10:20.2]} 4... d6 {[%clk 0:11:48.6]} 5. Bg2 {[%clk 0:10:21.5]} 5... Nd7
{[%clk 0:11:49.5]} 6. O-O {[%clk 0:10:21.9]} 6... g6 {[%clk 0:11:48.6]} 7. Nc3
{[%clk 0:10:19.1]} 7... Bg7 {[%clk 0:11:49.7]} 8. d4 {[%clk 0:10:12.6]} 8... Ne7
{[%clk 0:11:50.5]} 9. b3 {[%clk 0:10:04.7]} 9... O-O {[%clk 0:11:51]} 10. Bb2
{[%clk 0:10:04.7]} 10... a6 {[%clk 0:11:51]} 11. e4 {[%clk 0:09:47.8]} 11... h6
{[%clk 0:11:50.7]} 12. Re1 {[%clk 0:09:21.1]} 12... Kh7 {[%clk 0:11:24.7]} 13.
e5 {[%clk 0:08:59.2]} 13... Bxf3 {[%clk 0:11:09.3]} 14. Bxf3 {[%clk 0:08:47.8]}
14... d5 {[%clk 0:11:10]} 15. g4 {[%clk 0:08:28.8]} 15... c5 {[%clk 0:10:58.9]}
16. Ne2 {[%clk 0:08:21.8]} 16... cxd4 {[%clk 0:10:53.9]} 17. Nxd4 {[%clk
0:08:06.4]} 17... Qc7 {[%clk 0:10:50.4]} 18. Rc1 {[%clk 0:07:53.4]} 18... Rac8
{[%clk 0:10:31.9]} 19. c4 {[%clk 0:07:50.7]} 19... dxc4 {[%clk 0:10:10]} 20.
Rxc4 {[%clk 0:07:48.4]} 20... Qb8 {[%clk 0:10:11.3]} 21. Ba3 {[%clk 0:07:15]}
21... Nc5 {[%clk 0:09:19.9]} 22. Bxc5 {[%clk 0:06:37]} 22... bxc5 {[%clk
0:09:10.1]} 23. Nc2 {[%clk 0:06:12.7]} 23... Rfd8 {[%clk 0:09:10.8]} 24. Qc1
{[%clk 0:05:53.7]} 24... Nd5 {[%clk 0:09:02]} 25. Ne3 {[%clk 0:05:23.9]} 25...
Nxe3 {[%clk 0:08:41.6]} 26. Rxe3 {[%clk 0:05:19.9]} 26... Rd4 {[%clk 0:08:18.4]}
27. Rec3 {[%clk 0:05:19.7]} 27... Rxc4 {[%clk 0:08:11.1]} 28. Rxc4 {[%clk
0:05:13.4]} 28... Qb6 {[%clk 0:08:10.7]} 29. Qe3 {[%clk 0:04:49.3]} 29... a5
{[%clk 0:08:04.9]} 30. Be4 {[%clk 0:04:48.3]} 30... Bf8 {[%clk 0:07:59.6]} 31.
f5 {[%clk 0:04:48.5]} 31... Qd8 {[%clk 0:07:33.6]} 32. fxg6+ {[%clk 0:04:19.2]}
32... fxg6 {[%clk 0:07:33.8]} 33. Qf3 {[%clk 0:03:10.6]} 33... Bg7 {[%clk
0:06:24.3]} 34. Bd3 {[%clk 0:01:28]} 34... Qg5 {[%clk 0:06:09.4]} 35. h3 {[%clk
0:01:10.1]} 35... Rf8 {[%clk 0:05:43.4]} 36. Qe4 {[%clk 0:00:20.8]} 36... h5
{[%clk 0:04:32.1]} 37. h4 {[%clk 0:00:21]} 37... Qxg4+ {[%clk 0:04:33.2]} 38.
Qxg4 {[%clk 0:00:20.2]} 38... hxg4 {[%clk 0:04:34.8]} 39. Rxg4 {[%clk
0:00:20.8]} 39... Bxe5 {[%clk 0:04:29]} 40. h5 {[%clk 0:00:21.5]} 40... Bd4+
{[%clk 0:04:21]} 41. Kh2 {[%clk 0:00:18]} 41... Rf6 {[%clk 0:04:09.4]} 42. hxg6+
{[%clk 0:00:17.7]} 42... Kg7 {[%clk 0:03:55.9]} 43. Rh4 {[%clk 0:00:14.7]} 43...
Rf2+ {[%clk 0:03:53.3]} 44. Kg3 {[%clk 0:00:14.6]} 44... Rf6 {[%clk 0:03:39.2]}
45. Rh7+ {[%clk 0:00:09.3]} 45... Kg8 {[%clk 0:03:40.7]} 46. Ra7 {[%clk
0:00:07.3]} 46... Bc3 {[%clk 0:03:41]} 47. Ra8+ {[%clk 0:00:04.2]} 47... Kg7
{[%clk 0:03:10.2]} 48. Rxa5 {[%clk 0:00:05.2]} 48... Bxa5 {[%clk 0:03:07.8]} 0-1

[Event "Rapid della Domenica"]
[Site "Chess.com"]
[Date "2020.06.07"]
[Round "1"]
[White "APipitone"]
[Black "SanSecondoPR"]
[Result "1-0"]
[WhiteElo "1673"]
[BlackElo "1354"]
[TimeControl "720+3"]
[EndTime "6:26:28 PDT"]
[Termination "APipitone ha vinto per abbandono"]

1. e4 {[%clk 0:11:54]} 1... e5 {[%clk 0:11:59.6]} 2. Nf3 {[%clk 0:11:54.4]} 2...
Nc6 {[%clk 0:11:59.5]} 3. Bb5 {[%clk 0:11:53]} 3... Nge7 {[%clk 0:11:59.4]} 4.
O-O {[%clk 0:11:42.8]} 4... g6 {[%clk 0:12:00.8]} 5. c3 {[%clk 0:11:33.5]} 5...
Bg7 {[%clk 0:12:01.9]} 6. d4 {[%clk 0:11:28]} 6... O-O {[%clk 0:12:00.5]} 7. d5
{[%clk 0:11:24.8]} 7... Nb8 {[%clk 0:11:44.2]} 8. Bg5 {[%clk 0:11:04.6]} 8... f6
{[%clk 0:11:44.3]} 9. Be3 {[%clk 0:11:01.4]} 9... d6 {[%clk 0:11:44]} 10. Nbd2
{[%clk 0:10:48.6]} 10... c6 {[%clk 0:11:42.4]} 11. Ba4 {[%clk 0:10:46.8]} 11...
b5 {[%clk 0:11:41.2]} 12. Bc2 {[%clk 0:10:45.3]} 12... c5 {[%clk 0:11:41.6]} 13.
Re1 {[%clk 0:10:43.6]} 13... Bg4 {[%clk 0:11:26.7]} 14. h3 {[%clk 0:10:42]}
14... Bxf3 {[%clk 0:11:08.9]} 15. Nxf3 {[%clk 0:10:39]} 15... f5 {[%clk
0:11:06.5]} 16. Bg5 {[%clk 0:10:18.4]} 16... Bf6 {[%clk 0:10:52.8]} 17. Qd2
{[%clk 0:10:11.7]} 17... f4 {[%clk 0:10:45.1]} 18. Bxf6 {[%clk 0:09:53.4]} 18...
Rxf6 {[%clk 0:10:38.5]} 19. Ng5 {[%clk 0:09:50.8]} 19... Qe8 {[%clk 0:10:08.5]}
20. Qe2 {[%clk 0:09:47.7]} 20... Qf8 {[%clk 0:09:42.7]} 21. Qg4 {[%clk
0:09:29.9]} 21... Qh6 {[%clk 0:09:16]} 22. a4 {[%clk 0:08:09.8]} 22... b4 {[%clk
0:08:30.8]} 23. cxb4 {[%clk 0:08:05.5]} 23... Qh5 {[%clk 0:08:08.1]} 24. Ne6
{[%clk 0:06:44.6]} 24... Qxg4 {[%clk 0:07:52]} 25. hxg4 {[%clk 0:06:40.8]} 25...
Nd7 {[%clk 0:07:41.9]} 26. g5 {[%clk 0:06:30.1]} 26... Rf7 {[%clk 0:07:33.5]}
27. bxc5 {[%clk 0:06:17.2]} 27... Nxc5 {[%clk 0:07:18.1]} 28. Nxc5 {[%clk
0:06:13]} 28... dxc5 {[%clk 0:07:12.3]} 29. d6 {[%clk 0:06:07.9]} 29... Nc6
{[%clk 0:07:07.6]} 30. Bb3 {[%clk 0:06:07.2]} 30... Nd4 {[%clk 0:06:41.1]} 31.
Bxf7+ {[%clk 0:05:36.5]} 31... Kxf7 {[%clk 0:06:38.5]} 32. Rac1 {[%clk
0:05:23.6]} 32... Rc8 {[%clk 0:06:26.5]} 33. Kf1 {[%clk 0:05:20.8]} 33... Ke6
{[%clk 0:06:20.5]} 34. b4 {[%clk 0:04:56.8]} 34... c4 {[%clk 0:06:09.7]} 35. Rc3
{[%clk 0:04:16.6]} 35... Nb3 {[%clk 0:05:15.6]} 36. Rd1 {[%clk 0:03:59.1]} 36...
Nd4 {[%clk 0:04:37.1]} 37. Rdc1 {[%clk 0:03:45]} 37... Nb3 {[%clk 0:04:15.9]}
38. R1c2 {[%clk 0:03:27.8]} 38... Nd4 {[%clk 0:04:12.9]} 39. Rxc4 {[%clk
0:03:15.5]} 39... Rd8 {[%clk 0:03:56.2]} 40. R2c3 {[%clk 0:02:38.2]} 40... Rxd6
{[%clk 0:03:51.4]} 41. Rc7 {[%clk 0:02:30.4]} 41... f3 {[%clk 0:03:29.9]} 42.
gxf3 {[%clk 0:02:23]} 42... Nxf3 {[%clk 0:03:21.6]} 43. R3c6 {[%clk 0:02:15.7]}
43... Nd2+ {[%clk 0:03:16.8]} 44. Ke2 {[%clk 0:02:13.5]} 44... Nxe4 {[%clk
0:03:13.7]} 45. Rxd6+ {[%clk 0:02:12.7]} 45... Kxd6 {[%clk 0:02:58.7]} 46. Rxa7
{[%clk 0:02:12.8]} 46... Nxg5 {[%clk 0:02:50]} 47. a5 {[%clk 0:02:07.5]} 47...
Kc6 {[%clk 0:02:45.1]} 48. Re7 {[%clk 0:01:58.4]} 48... e4 {[%clk 0:02:22.9]}
49. a6 {[%clk 0:01:57.8]} 49... Nf3 {[%clk 0:02:09.5]} 50. a7 {[%clk 0:01:52.3]}
50... Nd4+ {[%clk 0:01:59.7]} 51. Kd1 {[%clk 0:01:46.6]} 51... Kd6 {[%clk
0:01:55.4]} 52. a8=Q {[%clk 0:01:40.6]} 1-0

[Event "Rapid della Domenica"]
[Site "Chess.com"]
[Date "2020.06.07"]
[Round "2"]
[White "ferrariand"]
[Black "crippo"]
[Result "0-1"]
[WhiteElo "1512"]
[BlackElo "1575"]
[TimeControl "720+3"]
[EndTime "6:36:57 PDT"]
[Termination "crippo ha vinto per abbandono"]

1. e4 {[%clk 0:12:02.6]} 1... e5 {[%clk 0:12:00.7]} 2. Nf3 {[%clk 0:11:57.8]}
2... Nc6 {[%clk 0:12:01]} 3. Bb5 {[%clk 0:11:57.6]} 3... d6 {[%clk 0:12:02]} 4.
c3 {[%clk 0:11:56.8]} 4... Be7 {[%clk 0:12:02.5]} 5. h3 {[%clk 0:11:51.8]} 5...
Nf6 {[%clk 0:12:03.3]} 6. d3 {[%clk 0:11:52.4]} 6... O-O {[%clk 0:12:04.1]} 7.
O-O {[%clk 0:11:51.9]} 7... h6 {[%clk 0:12:04.8]} 8. Re1 {[%clk 0:11:49.8]} 8...
Nh7 {[%clk 0:12:06.3]} 9. d4 {[%clk 0:11:48.2]} 9... exd4 {[%clk 0:12:04]} 10.
cxd4 {[%clk 0:11:48.2]} 10... Ng5 {[%clk 0:11:57.7]} 11. Nc3 {[%clk 0:11:26.8]}
11... Nxf3+ {[%clk 0:11:58.6]} 12. Qxf3 {[%clk 0:11:27.7]} 12... Nxd4 {[%clk
0:11:59]} 13. Qd3 {[%clk 0:11:19.6]} 13... Nxb5 {[%clk 0:11:57.2]} 14. Qxb5
{[%clk 0:11:20.3]} 14... c6 {[%clk 0:11:55]} 15. Qd3 {[%clk 0:11:14.2]} 15...
Be6 {[%clk 0:11:55.2]} 16. Bf4 {[%clk 0:11:11.1]} 16... Qd7 {[%clk 0:11:50.9]}
17. Rad1 {[%clk 0:11:03.1]} 17... Rfd8 {[%clk 0:11:49.7]} 18. a3 {[%clk
0:10:48.8]} 18... b5 {[%clk 0:11:50.2]} 19. Qg3 {[%clk 0:10:43.5]} 19... Kh7
{[%clk 0:11:39]} 20. e5 {[%clk 0:10:36]} 20... d5 {[%clk 0:11:37.9]} 21. b4
{[%clk 0:09:28.3]} 21... a5 {[%clk 0:11:28.3]} 22. Ne4 {[%clk 0:09:24.8]} 22...
axb4 {[%clk 0:11:27.3]} 23. axb4 {[%clk 0:09:24]} 23... Bxb4 {[%clk 0:11:20.1]}
24. Re2 {[%clk 0:09:19.5]} 24... Ra3 {[%clk 0:11:19.1]} 25. Qh4 {[%clk
0:09:09.4]} 25... Be7 {[%clk 0:11:18.7]} 26. Ng5+ {[%clk 0:09:07.2]} 26... Bxg5
{[%clk 0:11:03.8]} 27. Bxg5 {[%clk 0:09:07.3]} 27... Ra4 {[%clk 0:11:02.3]} 28.
Qh5 {[%clk 0:09:02.1]} 28... Bf5 {[%clk 0:10:53.6]} 29. Bxd8 {[%clk 0:08:58.2]}
29... Bg6 {[%clk 0:10:51.5]} 30. Qf3 {[%clk 0:08:39.6]} 30... Qxd8 {[%clk
0:10:52.2]} 31. e6 {[%clk 0:08:37.4]} 31... fxe6 {[%clk 0:10:53.4]} 32. Rxe6
{[%clk 0:08:37.6]} 32... Rc4 {[%clk 0:10:46]} 33. Qg3 {[%clk 0:08:30.6]} 33...
Qg5 {[%clk 0:10:46.4]} 34. Qxg5 {[%clk 0:08:17]} 34... hxg5 {[%clk 0:10:47.7]}
35. Re7 {[%clk 0:08:07]} 35... b4 {[%clk 0:10:44]} 36. Rc7 {[%clk 0:08:00.7]}
36... b3 {[%clk 0:10:45.1]} 37. Rxd5 {[%clk 0:07:58.4]} 37... b2 {[%clk
0:10:38.3]} 38. Rd1 {[%clk 0:07:30]} 38... Rc1 {[%clk 0:10:36.9]} 0-1

[Event "Rapid della Domenica"]
[Site "Chess.com"]
[Date "2020.06.07"]
[Round "2"]
[White "APipitone"]
[Black "mr6701"]
[Result "0-1"]
[WhiteElo "1666"]
[BlackElo "1787"]
[TimeControl "720+3"]
[EndTime "6:39:00 PDT"]
[Termination "mr6701 ha vinto per abbandono"]

1. e4 {[%clk 0:11:59.8]} 1... d5 {[%clk 0:12:01.6]} 2. exd5 {[%clk 0:12:00.1]}
2... Nf6 {[%clk 0:12:03.6]} 3. Nf3 {[%clk 0:12:00]} 3... Nxd5 {[%clk 0:12:04.7]}
4. d4 {[%clk 0:12:00.3]} 4... g6 {[%clk 0:11:59.4]} 5. Bd3 {[%clk 0:11:55.9]}
5... Bg7 {[%clk 0:12:00.5]} 6. O-O {[%clk 0:11:55.2]} 6... O-O {[%clk
0:12:02.2]} 7. Nbd2 {[%clk 0:11:40]} 7... Nb4 {[%clk 0:11:58.8]} 8. Be2 {[%clk
0:11:25.8]} 8... Bf5 {[%clk 0:11:44.4]} 9. c4 {[%clk 0:10:50.8]} 9... Nc2 {[%clk
0:11:39.4]} 10. Nh4 {[%clk 0:10:23.2]} 10... Nxa1 {[%clk 0:11:32.9]} 11. Nxf5
{[%clk 0:10:19.2]} 11... gxf5 {[%clk 0:11:33.3]} 12. Nf3 {[%clk 0:10:06.5]}
12... c5 {[%clk 0:11:34.6]} 13. Be3 {[%clk 0:09:39.3]} 13... cxd4 {[%clk
0:11:25.6]} 14. Nxd4 {[%clk 0:09:31.9]} 14... e5 {[%clk 0:11:18.2]} 15. Nxf5
{[%clk 0:09:27.2]} 15... Qxd1 {[%clk 0:11:16.2]} 16. Bxd1 {[%clk 0:09:19.9]}
16... Nd7 {[%clk 0:09:48.2]} 17. Ba4 {[%clk 0:08:25.8]} 17... Nb6 {[%clk
0:09:43.5]} 18. Bxb6 {[%clk 0:08:18.3]} 18... axb6 {[%clk 0:09:45.2]} 19. Nxg7
{[%clk 0:07:42.1]} 19... Kxg7 {[%clk 0:09:39]} 20. Rxa1 {[%clk 0:06:17.7]} 20...
Rxa4 {[%clk 0:09:38.7]} 21. b3 {[%clk 0:06:17.4]} 21... Ra5 {[%clk 0:09:37.7]}
22. b4 {[%clk 0:06:07.2]} 22... Ra4 {[%clk 0:09:36.6]} 23. a3 {[%clk 0:06:05.5]}
23... Rfa8 {[%clk 0:09:38]} 24. Rd1 {[%clk 0:05:51.7]} 24... Rxa3 {[%clk
0:09:23.2]} 25. Rd7 {[%clk 0:05:44.4]} 25... Ra1+ {[%clk 0:08:53.1]} 0-1

[Event "Rapid della Domenica"]
[Site "Chess.com"]
[Date "2020.06.07"]
[Round "2"]
[White "pedrak"]
[Black "fausto2p"]
[Result "1-0"]
[WhiteElo "1711"]
[BlackElo "1222"]
[TimeControl "720+3"]
[EndTime "6:41:40 PDT"]
[Termination "pedrak ha vinto per abbandono"]

1. d4 {[%clk 0:12:02.9]} 1... d5 {[%clk 0:12:00.4]} 2. Nf3 {[%clk 0:12:03.3]}
2... Nf6 {[%clk 0:11:59.6]} 3. Bf4 {[%clk 0:12:01.9]} 3... e6 {[%clk 0:11:40.6]}
4. e3 {[%clk 0:11:56.7]} 4... c5 {[%clk 0:11:26.7]} 5. c3 {[%clk 0:11:57.7]}
5... Nc6 {[%clk 0:11:15.8]} 6. Bd3 {[%clk 0:11:58.1]} 6... Qb6 {[%clk 0:11:07]}
7. Qb3 {[%clk 0:11:57.4]} 7... Qxb3 {[%clk 0:10:57.3]} 8. axb3 {[%clk
0:11:57.3]} 8... cxd4 {[%clk 0:10:45.1]} 9. exd4 {[%clk 0:11:57.6]} 9... Be7
{[%clk 0:10:28.3]} 10. Nbd2 {[%clk 0:11:58]} 10... O-O {[%clk 0:10:23.2]} 11.
O-O {[%clk 0:11:59.3]} 11... a6 {[%clk 0:10:10]} 12. b4 {[%clk 0:12:00.1]} 12...
b5 {[%clk 0:09:42.9]} 13. Bxb5 {[%clk 0:11:54.9]} 13... Bd7 {[%clk 0:09:20]} 14.
Bxa6 {[%clk 0:11:46.4]} 14... h6 {[%clk 0:08:43]} 15. Ne5 {[%clk 0:11:25.3]}
15... Nxe5 {[%clk 0:08:33.4]} 16. Bxe5 {[%clk 0:11:26.4]} 16... Ng4 {[%clk
0:08:08.1]} 17. Bg3 {[%clk 0:11:13.6]} 17... Bg5 {[%clk 0:07:52.4]} 18. Nb3
{[%clk 0:11:05.9]} 18... Be7 {[%clk 0:07:12]} 19. Nc5 {[%clk 0:10:58.6]} 19...
Bxc5 {[%clk 0:07:03.2]} 20. bxc5 {[%clk 0:10:59.4]} 20... Bc6 {[%clk 0:06:54.9]}
21. b4 {[%clk 0:10:54.8]} 21... Rfb8 {[%clk 0:06:46.4]} 22. Bxb8 {[%clk
0:10:51.9]} 22... Rxb8 {[%clk 0:06:46.2]} 23. Be2 {[%clk 0:10:48.9]} 23... Nf6
{[%clk 0:06:45.9]} 24. Rfb1 {[%clk 0:10:46.4]} 24... Ne4 {[%clk 0:06:43.8]} 25.
Ra3 {[%clk 0:10:43.2]} 25... Nd2 {[%clk 0:05:16.2]} 26. Rb2 {[%clk 0:10:34.8]}
26... Nc4 {[%clk 0:05:06.5]} 27. Bxc4 {[%clk 0:10:36.1]} 27... dxc4 {[%clk
0:05:08]} 28. Ra5 {[%clk 0:10:28]} 28... Bb5 {[%clk 0:04:45.5]} 29. Rba2 {[%clk
0:10:25.8]} 29... Kh7 {[%clk 0:04:33.8]} 30. Ra7 {[%clk 0:10:20.8]} 30... Kg6
{[%clk 0:04:25.8]} 31. Rc7 {[%clk 0:10:15.7]} 31... f6 {[%clk 0:04:05.9]} 32.
Raa7 {[%clk 0:10:15.6]} 32... Rg8 {[%clk 0:03:53.7]} 33. Rab7 {[%clk 0:10:01.7]}
33... Ba6 {[%clk 0:03:24.2]} 34. Rb6 {[%clk 0:10:00]} 34... Bc8 {[%clk
0:03:23.3]} 35. Rb8 {[%clk 0:09:52.8]} 35... Kh7 {[%clk 0:03:10.4]} 36. Rcxc8
{[%clk 0:09:48.7]} 1-0

[Event "Rapid della Domenica"]
[Site "Chess.com"]
[Date "2020.06.07"]
[Round "2"]
[White "Carbon"]
[Black "sirmale49"]
[Result "0-1"]
[WhiteElo "1733"]
[BlackElo "1383"]
[TimeControl "720+3"]
[EndTime "6:42:23 PDT"]
[Termination "sirmale49 ha vinto per tempo"]

1. e4 {[%clk 0:11:48.6]} 1... e5 {[%clk 0:11:44.7]} 2. Nf3 {[%clk 0:11:49]} 2...
Nc6 {[%clk 0:11:46.5]} 3. Bc4 {[%clk 0:11:49.7]} 3... Bc5 {[%clk 0:11:44.4]} 4.
c3 {[%clk 0:11:51.1]} 4... Nf6 {[%clk 0:11:46]} 5. d4 {[%clk 0:11:50.3]} 5...
Bb6 {[%clk 0:11:39.4]} 6. dxe5 {[%clk 0:11:02.5]} 6... Ng4 {[%clk 0:11:37.6]} 7.
O-O {[%clk 0:10:44.4]} 7... Ngxe5 {[%clk 0:11:28.7]} 8. Bd5 {[%clk 0:09:43.6]}
8... d6 {[%clk 0:11:08.8]} 9. h3 {[%clk 0:09:28.8]} 9... O-O {[%clk 0:11:04.9]}
10. Kh1 {[%clk 0:09:27.2]} 10... Be6 {[%clk 0:11:03.7]} 11. Nxe5 {[%clk
0:09:21.1]} 11... Nxe5 {[%clk 0:10:49.4]} 12. Bxb7 {[%clk 0:09:08.7]} 12... Rb8
{[%clk 0:10:50.3]} 13. Ba6 {[%clk 0:08:56.4]} 13... f5 {[%clk 0:10:12.1]} 14. f4
{[%clk 0:08:30.9]} 14... Nc4 {[%clk 0:09:56.5]} 0-1

[Event "Rapid della Domenica"]
[Site "Chess.com"]
[Date "2020.06.07"]
[Round "3"]
[White "SanSecondoPR"]
[Black "ferrariand"]
[Result "1-0"]
[WhiteElo "1365"]
[BlackElo "1499"]
[TimeControl "720+3"]
[EndTime "7:03:03 PDT"]
[Termination "SanSecondoPR ha vinto per abbandono"]

1. e4 {[%clk 0:12:02.9]} 1... e5 {[%clk 0:12:00.7]} 2. d4 {[%clk 0:12:01.9]}
2... exd4 {[%clk 0:12:00.4]} 3. c3 {[%clk 0:12:01.9]} 3... dxc3 {[%clk
0:12:01.2]} 4. Bc4 {[%clk 0:12:01.7]} 4... cxb2 {[%clk 0:12:02]} 5. Bxb2 {[%clk
0:12:02.4]} 5... Nf6 {[%clk 0:11:58.7]} 6. Nd2 {[%clk 0:11:58.4]} 6... d5 {[%clk
0:11:59.1]} 7. Bb3 {[%clk 0:11:38.5]} 7... dxe4 {[%clk 0:11:56.6]} 8. Ne2 {[%clk
0:11:34.4]} 8... Bb4 {[%clk 0:11:51.3]} 9. Bxf7+ {[%clk 0:11:29.7]} 9... Kxf7
{[%clk 0:11:49.5]} 10. Qb3+ {[%clk 0:11:27.8]} 10... Nd5 {[%clk 0:11:45.5]} 11.
O-O {[%clk 0:11:04.7]} 11... Bxd2 {[%clk 0:11:46.4]} 12. Rfd1 {[%clk 0:10:55.6]}
12... Be6 {[%clk 0:11:32.1]} 13. Rxd2 {[%clk 0:10:45.2]} 13... Qg5 {[%clk
0:11:18.5]} 14. Bc1 {[%clk 0:10:11.1]} 14... e3 {[%clk 0:11:13.9]} 15. f4 {[%clk
0:08:33.9]} 15... Qg4 {[%clk 0:11:00.1]} 16. Rc2 {[%clk 0:08:14.9]} 16... Nc6
{[%clk 0:10:28.3]} 17. Qxb7 {[%clk 0:07:51.4]} 17... Qh4 {[%clk 0:10:07.6]} 18.
Bxe3 {[%clk 0:07:21.9]} 18... Nxe3 {[%clk 0:09:58.6]} 19. Qxc7+ {[%clk
0:07:14.9]} 19... Kg6 {[%clk 0:09:55.7]} 20. f5+ {[%clk 0:07:00.7]} 20... Bxf5
{[%clk 0:09:52.7]} 21. Rxc6+ {[%clk 0:06:37.9]} 21... Kh5 {[%clk 0:09:43.1]} 22.
Nf4+ {[%clk 0:06:29.3]} 22... Kg4 {[%clk 0:09:27.6]} 23. h3+ {[%clk 0:06:17.4]}
23... Kg5 {[%clk 0:09:15.5]} 24. Ne6+ {[%clk 0:04:56.1]} 24... Bxe6 {[%clk
0:09:11]} 25. Rxe6 {[%clk 0:04:43.1]} 25... Qd4 {[%clk 0:08:54.7]} 26. Re5+
{[%clk 0:04:19]} 26... Nf5+ {[%clk 0:08:54.3]} 27. Kh2 {[%clk 0:03:34.1]} 27...
Qf4+ {[%clk 0:08:53.9]} 28. Kg1 {[%clk 0:03:25.5]} 28... Qd4+ {[%clk 0:08:51.5]}
29. Kh1 {[%clk 0:03:17.1]} 29... Qxa1+ {[%clk 0:08:51.2]} 30. Kh2 {[%clk
0:03:12.7]} 30... Qd4 {[%clk 0:08:14.4]} 31. Qxg7+ {[%clk 0:03:04.8]} 31... Kf4
{[%clk 0:07:37.5]} 32. Rxf5+ {[%clk 0:02:40.1]} 32... Kxf5 {[%clk 0:07:30.7]}
33. Qxd4 {[%clk 0:02:38]} 33... Rhg8 {[%clk 0:07:11.3]} 34. g4+ {[%clk
0:02:36.9]} 34... Ke6 {[%clk 0:07:05.2]} 35. h4 {[%clk 0:02:31.1]} 35... Rad8
{[%clk 0:07:03.4]} 36. Qc4+ {[%clk 0:02:29.5]} 36... Ke7 {[%clk 0:07:01.8]} 37.
g5 {[%clk 0:02:25.9]} 37... Rgf8 {[%clk 0:06:57.6]} 38. Kg3 {[%clk 0:02:13.1]}
38... Rc8 {[%clk 0:06:50.8]} 39. Qb4+ {[%clk 0:02:08.3]} 39... Kd7 {[%clk
0:06:47.1]} 40. Kg4 {[%clk 0:01:54.9]} 40... Rc6 {[%clk 0:06:29.3]} 41. Qxf8
{[%clk 0:01:36.9]} 1-0